fUSD/lending_fUSD_20240528
["ID","MTS","AMOUNT","RATE_DAILY","PERIOD"]
[328129895,1716913849943,-500.0,0.00027397,2]
[328129896,1716913849952,-500.0,0.00027397,2]
[328129897,1716913849961,-500.0,0.00027397,2]
[328129898,1716913849971,-542.35602722,0.00027397,2]
[328129899,1716913849983,-514.55785485,0.00027397,2]
[328129900,1716913849993,-763.4,0.00027397,2]
[328129901,1716913850003,-549.44,0.00027397,2]
[328129902,1716913850013,-500.0,0.00027397,2]
[328129903,1716913850023,-514.11664591,0.00027397,2]
[328129904,1716913850033,-500.0,0.00027397,2]
[328129905,1716913850044,-463.31,0.00027397,2]
[328129906,1716913850053,-571.75,0.00027397,2]
[328129907,1716913850063,-500.0,0.00027397,2]
[328129908,1716913850072,-512.74881986,0.00027397,2]
[328129909,1716913850082,-500.0,0.00027397,2]
[328129910,1716913850091,-506.90076459,0.00027397,2]
[328129911,1716913850102,-631.27,0.00027397,2]
[328129912,1716913850114,-512.88984196,0.00027397,2]
[328129913,1716913850123,-641.22,0.00027397,2]
[328129914,1716913850133,-500.0,0.00027397,2]
[328129915,1716913850143,-514.53310987,0.00027397,2]
[328129916,1716913850153,-500.0,0.00027397,2]
[328129917,1716913850163,-500.0,0.00027397,2]
[328129918,1716913850172,-500.0,0.00027397,2]
[328129919,1716913850182,-500.0,0.00027397,2]
[328129920,1716913850195,-500.0,0.00027397,2]
[328129921,1716913850206,-500.0,0.00027397,2]
[328129922,1716913850215,-500.0,0.00027397,2]
[328129923,1716913850225,-500.0,0.00027397,2]
[328129924,1716913850234,-211.83116004,0.00027397,2]
[328129925,1716913850244,-500.0,0.00027397,2]
[328129926,1716913850253,-500.0,0.00027397,2]
[328129927,1716913850262,-991.41,0.00027397,2]
[328129928,1716913850272,-500.0,0.00027397,2]
[328129929,1716913850281,-500.0,0.00027397,2]
[328129930,1716913850290,-380.92,0.00027397,2]
[328129931,1716913850300,-500.0,0.00027397,2]
[328129932,1716913850311,-500.0,0.00027397,2]
[328129933,1716913850320,-500.0,0.00027397,2]
[328129934,1716913850329,-500.0,0.00027397,2]
[328129935,1716913850339,-500.0,0.00027397,2]
[328129936,1716913850349,-500.0,0.00027397,2]
[328129937,1716913850358,-500.0,0.00027397,2]
[328129938,1716913850367,-500.0,0.00027397,2]
[328129939,1716913850377,-485.3,0.00027397,2]
[328129940,1716913850386,-798.53,0.00027397,10]
[328129941,1716913850395,-665.44,0.00027397,10]
[328129942,1716913850404,-911.75,0.000274,2]
[328129943,1716913850413,-1123.0,0.000274,2]
[328129944,1716913850422,-1123.0,0.000274,2]
[328129945,1716913850432,-1123.0,0.000274,2]
[328129946,1716913850443,-1123.0,0.000274,2]
[328129947,1716913850453,-1123.0,0.000274,2]
[328129948,1716913850463,-1123.0,0.000274,2]
[328129949,1716913850472,-1123.0,0.000274,2]
[328129950,1716913850481,-1123.0,0.000274,2]
[328129951,1716913850490,-1123.0,0.000274,2]
[328129952,1716913850500,-1123.0,0.000274,2]
[328129953,1716913850509,-150.55028266,0.00027493,2]
[328129954,1716913850518,-150.55028266,0.00027633,2]
[328129955,1716913850528,-194.36781864,0.00027665,2]
[328129956,1716913850538,-500.0,0.00027671,2]
[328129957,1716913850547,-500.0,0.00027671,2]
[328129958,1716913850557,-500.0,0.00027671,2]
[328129959,1716913850566,-1409.12,0.00027671,2]
[328129960,1716913850576,-303.46,0.00027671,2]
[328129961,1716913850585,-363.24,0.00027671,2]
[328129962,1716913850595,-306.4,0.00027671,2]
[328129963,1716913850604,-500.0,0.00027671,2]
[328129964,1716913850613,-549.24,0.00027671,2]
[328129965,1716913850623,-322.89765319,0.00027671,2]
[328129966,1716913850634,-360.7,0.00027671,2]
[328129967,1716913850643,-348.96,0.00027671,2]
[328129968,1716913850653,-642.06,0.00027671,2]
[328129969,1716913850663,-577.99,0.00027671,2]
[328129970,1716913850672,-500.0,0.00027671,2]
[328129971,1716913850682,-500.0,0.00027671,2]
[328129972,1716913850694,-500.0,0.00027671,2]
[328129973,1716913850704,-422.58,0.00027671,2]
[328129974,1716913850714,-400.24,0.00027671,2]
[328129975,1716913850723,-397.61,0.00027671,2]
[328129976,1716913850733,-200.93,0.00027671,2]
[328129977,1716913850743,-500.0,0.00027671,2]
[328129978,1716913850752,-500.0,0.00027671,2]
[328129979,1716913850763,-198.56,0.00027671,2]
[328129980,1716913850772,-540.27,0.00027671,2]
[328129981,1716913850784,-345.77,0.00027671,2]
[328129982,1716913850794,-216.69,0.00027671,2]
[328129983,1716913850803,-2654.44,0.00027671,2]
[328129984,1716913850812,-500.0,0.00027671,2]
[328129985,1716913850822,-483.22,0.00027671,2]
[328129986,1716913850831,-479.87,0.00027671,2]
[328129987,1716913850841,-500.0,0.00027671,2]
[328129988,1716913850850,-500.0,0.00027671,2]
[328129989,1716913850862,-500.0,0.00027671,2]
[328129990,1716913850873,-174.66,0.00027671,2]
[328129991,1716913850883,-276.32,0.00027671,2]
[328129992,1716913850893,-382.89,0.00027671,2]
[328129993,1716913850902,-500.0,0.00027671,2]
[328129994,1716913850911,-500.0,0.00027671,2]
[328129995,1716913850920,-500.0,0.00027671,2]
[328129996,1716913850929,-500.0,0.00027671,2]
[328129997,1716913850940,-500.0,0.00027671,2]
[328129998,1716913850949,-605.27,0.00027671,2]
[328129999,1716913850958,-430.12,0.00027671,2]
[328130000,1716913850968,-208.75,0.00027671,2]
[328130001,1716913850978,-264.09452131,0.00027671,2]
[328130002,1716913850987,-500.0,0.00027671,2]
[328130003,1716913850996,-500.0,0.00027671,2]
[328130004,1716913851006,-422.49,0.00027671,2]
[328130005,1716913851015,-500.0,0.00027671,2]
[328130006,1716913851024,-582.18804331,0.00027671,2]
[328130007,1716913851036,-500.0,0.00027671,2]
[328130008,1716913851045,-387.03,0.00027671,2]
[328130009,1716913851054,-500.0,0.00027671,2]
[328130010,1716913851063,-509.64,0.00027671,2]
[328130011,1716913851072,-500.0,0.00027671,2]
[328130012,1716913851081,-308.18781069,0.00027671,2]
[328130013,1716913851090,-391.2,0.00027671,2]
[328130014,1716913851099,-500.0,0.00027671,2]
[328130015,1716913851110,-518.19,0.00027671,2]
[328130016,1716913851121,-606.74,0.00027671,2]
[328130017,1716913851130,-274.59,0.00027671,2]
[328130018,1716913851140,-500.0,0.00027671,2]
[328130019,1716913851149,-500.0,0.00027671,2]
[328130020,1716913851158,-500.0,0.00027671,2]
[328130021,1716913851167,-500.0,0.00027671,2]
[328130022,1716913851177,-388.43,0.00027671,2]
[328130023,1716913851188,-682.59,0.00027671,2]
[328130024,1716913851200,-500.0,0.00027671,2]
[328130025,1716913851210,-500.0,0.00027671,2]
[328130026,1716913851218,-182.39,0.00027671,2]
[328130027,1716913851228,-889.03,0.00027671,2]
[328130028,1716913851237,-649.43,0.00027671,2]
[328130029,1716913851247,-500.0,0.00027671,2]
[328130030,1716913851256,-518.09,0.00027671,2]
[328130031,1716913851265,-473.53,0.00027671,2]
[328130032,1716913851274,-500.0,0.00027671,2]
[328130033,1716913851283,-196.13,0.00027671,2]
[328130034,1716913851293,-446.10559251,0.00027671,2]
[328130035,1716913851303,-226.6,0.00027671,2]
[328130036,1716913851312,-763.4,0.00027671,2]
[328130037,1716913851321,-549.44,0.00027671,2]
[328130038,1716913851331,-297.20328535,0.00027671,2]
[328130039,1716913851340,-500.0,0.00027671,2]
[328130040,1716913851349,-287.37492868,0.00027671,2]
[328130041,1716913851358,-500.0,0.00027671,2]
[328130042,1716913851367,-500.0,0.00027671,2]
[328130043,1716913851376,-500.0,0.00027671,2]
[328130044,1716913851385,-500.0,0.00027671,2]
[328130045,1716913851394,-341.54,0.00027671,2]
[328130046,1716913851403,-500.0,0.00027671,2]
[328130047,1716913851412,-500.0,0.00027671,2]
[328130048,1716913851421,-500.0,0.00027671,2]
[328130049,1716913851431,-500.0,0.00027671,2]
[328130050,1716913851441,-173.83,0.00027671,2]
[328130051,1716913851450,-991.41,0.00027671,2]
[328130052,1716913851460,-500.0,0.00027671,2]
[328130053,1716913851469,-500.0,0.00027671,2]
[328130054,1716913851478,-500.0,0.00027671,2]
[328130055,1716913851487,-213.68,0.00027671,2]
[328130056,1716913851497,-500.0,0.00027671,2]
[328130057,1716913851506,-500.0,0.00027671,2]
[328130058,1716913851516,-500.0,0.00027671,2]
[328130059,1716913851525,-500.0,0.00027671,2]
[328130060,1716913851535,-531.55,0.00027671,2]
[328130061,1716913851544,-166.66666667,0.00027697,2]
[328130062,1716913851554,-1300.0,0.00027724,2]
[328130063,1716913851563,-1270.58824831,0.00027899,2]
[328130064,1716913851572,-500.0,0.00027945,2]
[328130065,1716913851582,-500.0,0.00027945,2]
[328130066,1716913851592,-200.839991,0.00027945,2]
[328130067,1716913851601,-1409.12,0.00027945,2]
[328130068,1716913851611,-408.42,0.00027945,2]
[328130069,1716913851620,-396.53912386,0.00027945,2]
[328130070,1716913851630,-427.44,0.00027945,2]
[328130071,1716913851639,-500.0,0.00027945,2]
[328130072,1716913851648,-636.56,0.00027945,2]
[328130073,1716913851658,-238.89,0.00027945,2]
[328130074,1716913851667,-2654.44,0.00027945,2]
[328130075,1716913851677,-481.88,0.00027945,2]
[328130076,1716913851689,-397.75510271,0.00027945,2]
[328130077,1716913851699,-289.11,0.00027945,2]
[328130078,1716913851709,-549.74,0.00027945,2]
[328130079,1716913851718,-500.0,0.00027945,2]
[328130080,1716913851728,-500.0,0.00027945,2]
[328130081,1716913851737,-188.98,0.00027945,2]
[328130082,1716913851748,-500.0,0.00027945,2]
[328130083,1716913851756,-500.0,0.00027945,2]
[328130084,1716913851766,-500.0,0.00027945,2]
[328130085,1716913851775,-500.0,0.00027945,2]
[328130086,1716913851784,-500.0,0.00027945,2]
[328130087,1716913851793,-500.0,0.00027945,2]
[328130088,1716913851803,-500.0,0.00027945,2]
[328130089,1716913851813,-574.75692946,0.00027945,2]
[328130090,1716913851952,-23.51307054,0.00027945,2]
[328130091,1716913851962,-188.66669004,0.00027945,2]
[328130092,1716913851971,-98.17470179,0.00027945,2]
[328130093,1716913851984,-420.01529821,0.00027945,2]
[328130094,1716913851993,-500.0,0.00027945,2]
[328130095,1716913852002,-500.0,0.00027945,2]
[328130096,1716913852011,-500.0,0.00027945,2]
[328130097,1716913852020,-500.0,0.00027945,2]
[328130098,1716913852030,-682.59,0.00027945,2]
[328130099,1716913852039,-315.6,0.00027945,2]
[328130100,1716913852048,-500.0,0.00027945,2]
[328130101,1716913852058,-889.03,0.00027945,2]
[328130102,1716913852067,-500.0,0.00027945,2]
[328130103,1716913852221,-500.0,0.00027945,2]
[328130104,1716913852231,-763.4,0.00027945,2]
[328130105,1716913852241,-549.44,0.00027945,2]
[328130106,1716913852250,-500.0,0.00027945,2]
[328130107,1716913852259,-500.0,0.00027945,2]
[328130108,1716913852269,-500.0,0.00027945,2]
[328130109,1716913852278,-500.0,0.00027945,2]
[328130110,1716913852287,-500.0,0.00027945,2]
[328130111,1716913852297,-500.0,0.00027945,2]
[328130112,1716913852306,-429.67001849,0.00027945,2]
[328130113,1716913852316,-500.0,0.00027945,2]
[328130114,1716913852325,-522.85292615,0.00027945,2]
[328130115,1716913852334,-991.41,0.00027945,2]
[328130116,1716913852344,-498.23,0.00027945,2]
[328130117,1716913852353,-500.0,0.00027945,2]
[328130118,1716913852362,-250.17,0.00027945,2]
[328130119,1716913852372,-500.0,0.00027945,2]
[328130120,1716913852381,-500.0,0.00027945,2]
[328130121,1716913852391,-500.0,0.00027945,2]
[328130122,1716913852400,-500.0,0.00027945,2]
[328130123,1716913852409,-151.40096086,0.00028076,2]
[328130124,1716913852419,-281.13100376,0.0002811,2]
[328130125,1716913852428,-300.0,0.0002811,2]
[328130126,1716913852438,-500.0,0.00028219,2]
[328130127,1716913852447,-617.43,0.00028219,2]
[328130128,1716913852456,-1409.12,0.00028219,2]
[328130129,1716913852465,-500.0,0.00028219,2]
[328130130,1716913852474,-2654.44,0.00028219,2]
[328130131,1716913852483,-500.0,0.00028219,2]
[328130132,1716913852493,-500.0,0.00028219,2]
[328130133,1716913852502,-500.0,0.00028219,2]
[328130134,1716913852511,-500.0,0.00028219,2]
[328130135,1716913852521,-500.0,0.00028219,2]
[328130136,1716913852530,-500.0,0.00028219,2]
[328130137,1716913852539,-500.0,0.00028219,2]
[328130138,1716913852548,-500.0,0.00028219,2]
[328130139,1716913852557,-500.0,0.00028219,2]
[328130140,1716913852566,-518.19,0.00028219,2]
[328130141,1716913852575,-500.0,0.00028219,2]
[328130142,1716913852584,-253.51,0.00028219,2]
[328130143,1716913852594,-500.0,0.00028219,2]
[328130144,1716913852603,-500.0,0.00028219,2]
[328130145,1716913852612,-682.59,0.00028219,2]
[328130146,1716913852621,-417.61,0.00028219,2]
[328130147,1716913852630,-889.03,0.00028219,2]
[328130148,1716913852639,-550.9194515,0.00028219,2]
[328130149,1716913852648,-500.0,0.00028219,2]
[328130150,1716913852657,-763.4,0.00028219,2]
[328130151,1716913852666,-549.44,0.00028219,2]
[328130152,1716913852675,-500.0,0.00028219,2]
[328130153,1716913852684,-500.0,0.00028219,2]
[328130154,1716913852695,-500.0,0.00028219,2]
[328130155,1716913852706,-500.0,0.00028219,2]
[328130156,1716913852715,-500.0,0.00028219,2]
[328130157,1716913852724,-500.0,0.00028219,2]
[328130158,1716913852735,-991.41,0.00028219,2]
[328130159,1716913852744,-500.0,0.00028219,2]
[328130160,1716913852754,-500.0,0.00028219,2]
[328130161,1716913852763,-500.0,0.00028219,2]
[328130162,1716913852772,-633.19,0.00028219,2]
[328130163,1716913852782,-500.0,0.00028219,2]
[328130164,1716913852791,-1600.0,0.00028272,2]
[328130165,1716913852800,-500.0,0.00028272,2]
[328130166,1716913852809,-500.0,0.00028272,2]
[328130167,1716913852818,-309.62015253,0.00028272,2]
[328130168,1716913852827,-500.0,0.00028493,2]
[328130169,1716913852837,-1409.12,0.00028493,2]
[328130170,1716913852846,-452.57,0.00028493,2]
[328130171,1716913852855,-2654.44,0.00028493,2]
[328130172,1716913852864,-500.0,0.00028493,2]
[328130173,1716913852874,-500.0,0.00028493,2]
[328130174,1716913852883,-500.0,0.00028493,2]
[328130175,1716913852892,-500.0,0.00028493,2]
[328130176,1716913852901,-500.0,0.00028493,2]
[328130177,1716913852910,-500.0,0.00028493,2]
[328130178,1716913852919,-500.0,0.00028493,2]
[328130179,1716913852928,-500.0,0.00028493,2]
[328130180,1716913852939,-500.0,0.00028493,2]
[328130181,1716913852948,-518.19,0.00028493,2]
[328130182,1716913852957,-500.0,0.00028493,2]
[328130183,1716913852966,-500.0,0.00028493,2]
[328130184,1716913852975,-500.0,0.00028493,2]
[328130185,1716913852984,-682.59,0.00028493,2]
[328130186,1716913852993,-889.03,0.00028493,2]
[328130187,1716913853002,-500.0,0.00028493,2]
[328130188,1716913853010,-763.4,0.00028493,2]
[328130189,1716913853019,-549.44,0.00028493,2]
[328130190,1716913853028,-164.2761029,0.00028493,2]
[328130191,1716913853039,-507.15,0.00028493,2]
[328130192,1716913853049,-500.0,0.00028493,2]
[328130193,1716913853058,-500.0,0.00028493,2]
[328130194,1716913853067,-390.35,0.00028493,2]
[328130195,1716913853076,-502.28,0.00028493,2]
[328130196,1716913853085,-991.41,0.00028493,2]
[328130197,1716913853095,-500.0,0.00028493,2]
[328130198,1716913853105,-500.0,0.00028493,2]
[328130199,1716913853118,-500.0,0.00028493,2]
[328130200,1716913853127,-500.0,0.00028493,2]
[328130201,1716913853136,-153.0648168,0.00028511,2]
[328130202,1716913853145,-150.55028266,0.00028752,2]
[328130203,1716913853156,-157.93985288,0.00028752,2]
[328130204,1716913853165,-500.0,0.00028767,2]
[328130205,1716913853174,-1409.12,0.00028767,2]
[328130206,1716913853185,-2654.44,0.00028767,2]
[328130207,1716913853198,-500.0,0.00028767,2]
[328130208,1716913853207,-500.0,0.00028767,2]
[328130209,1716913853216,-500.0,0.00028767,2]
[328130210,1716913853226,-543.21406772,0.00028767,2]
[328130211,1716913853236,-500.0,0.00028767,2]
[328130212,1716913853245,-500.0,0.00028767,2]
[328130213,1716913853255,-500.0,0.00028767,2]
[328130214,1716913853264,-500.0,0.00028767,2]
[328130215,1716913853274,-500.0,0.00028767,2]
[328130216,1716913853284,-518.19,0.00028767,2]
[328130217,1716913853293,-500.0,0.00028767,2]
[328130218,1716913853302,-282.28482418,0.00028767,2]
[328130219,1716913853311,-500.0,0.00028767,2]
[328130220,1716913853320,-682.59,0.00028767,2]
[328130221,1716913853330,-889.03,0.00028767,2]
[328130222,1716913853339,-500.0,0.00028767,2]
[328130223,1716913853348,-500.0,0.00028767,2]
[328130224,1716913853357,-500.0,0.00028767,2]
[328130225,1716913853366,-500.0,0.00028767,2]
[328130226,1716913853375,-500.0,0.00028767,2]
[328130227,1716913853384,-500.0,0.00028767,2]
[328130228,1716913853394,-500.0,0.00028767,2]
[328130229,1716913853403,-763.4,0.00028767,2]
[328130230,1716913853412,-549.44,0.00028767,2]
[328130231,1716913853422,-500.0,0.00028767,2]
[328130232,1716913853432,-500.0,0.00028767,2]
[328130233,1716913853443,-991.41,0.00028767,2]
[328130234,1716913853453,-500.0,0.00028767,2]
[328130235,1716913853462,-500.0,0.00028767,2]
[328130236,1716913853470,-500.0,0.00028767,2]
[328130237,1716913853479,-500.0,0.00028767,2]
[328130238,1716913853489,-1300.0,0.0002882,2]
[328130239,1716913853498,-6665.13436769,0.00028894,2]
[328130240,1716913853507,-844.91733298,0.00028894,2]
[328130241,1716913853517,-155.0,0.000289,2]
[328130242,1716913853526,-1150.0,0.00029,2]
[328130243,1716913853535,-500.0,0.00029041,2]
[328130244,1716913853544,-1409.12,0.00029041,2]
[328130245,1716913853554,-2654.44,0.00029041,2]
[328130246,1716913853563,-500.0,0.00029041,2]
[328130247,1716913853573,-500.0,0.00029041,2]
[328130248,1716913853582,-389.74,0.00029041,2]
[328130249,1716913853591,-449.18,0.00029041,2]
[328130250,1716913853601,-500.0,0.00029041,2]
[328130251,1716913853610,-500.0,0.00029041,2]
[328130252,1716913853619,-500.0,0.00029041,2]
[328130253,1716913853629,-500.0,0.00029041,2]
[328130254,1716913853638,-518.19,0.00029041,2]
[328130255,1716913853647,-500.0,0.00029041,2]
[328130256,1716913853657,-500.0,0.00029041,2]
[328130257,1716913853666,-682.59,0.00029041,2]
[328130258,1716913853676,-889.03,0.00029041,2]
[328130259,1716913853685,-500.0,0.00029041,2]
[328130260,1716913853695,-500.0,0.00029041,2]
[328130261,1716913853704,-763.4,0.00029041,2]
[328130262,1716913853713,-549.44,0.00029041,2]
[328130263,1716913853722,-500.0,0.00029041,2]
[328130264,1716913853731,-500.0,0.00029041,2]
[328130265,1716913853740,-991.41,0.00029041,2]
[328130266,1716913853750,-500.0,0.00029041,2]
[328130267,1716913853760,-500.0,0.00029041,2]
[328130268,1716913853769,-500.0,0.00029041,2]
[328130269,1716913853779,-162.86,0.00029041,2]
[328130270,1716913853789,-153.0648168,0.00029043,2]
[328130271,1716913853798,-150.17304743,0.00029104,2]
[328130272,1716913853808,-156.56459879,0.00029232,2]
[328130273,1716913853817,-166.66666667,0.00029302,2]
[328130274,1716913853826,-151.4009609,0.00029302,2]
[328130275,1716913853836,-500.0,0.00029315,2]
[328130276,1716913853846,-1409.12,0.00029315,2]
[328130277,1716913853855,-2654.44,0.00029315,2]
[328130278,1716913853865,-500.0,0.00029315,2]
[328130279,1716913853875,-500.0,0.00029315,2]
[328130280,1716913853885,-500.0,0.00029315,2]
[328130281,1716913853895,-500.0,0.00029315,2]
[328130282,1716913853904,-500.0,0.00029315,2]
[328130283,1716913853914,-500.0,0.00029315,2]
[328130284,1716913853924,-518.19,0.00029315,2]
[328130285,1716913853934,-500.0,0.00029315,2]
[328130286,1716913853946,-500.0,0.00029315,2]
[328130287,1716913853955,-682.59,0.00029315,2]
[328130288,1716913853965,-889.03,0.00029315,2]
[328130289,1716913853974,-500.0,0.00029315,2]
[328130290,1716913853983,-324.05,0.00029315,2]
[328130291,1716913853993,-763.4,0.00029315,2]
[328130292,1716913854002,-549.44,0.00029315,2]
[328130293,1716913854012,-500.0,0.00029315,2]
[328130294,1716913854022,-500.0,0.00029315,2]
[328130295,1716913854031,-991.41,0.00029315,2]
[328130296,1716913854041,-596.29231894,0.00029315,2]
[328130297,1716913854050,-612.45,0.00029315,2]
[328130298,1716913854060,-269.38344635,0.00029315,2]
[328130299,1716913854070,-1600.0,0.00029368,2]
[328130300,1716913854079,-500.0,0.00029368,2]
[328130301,1716913854089,-500.0,0.00029368,2]
[328130302,1716913854098,-166.66666667,0.00029372,2]
[328130303,1716913854112,-155.58206812,0.00029397,4]
[328130304,1716913854122,-226.12840034,0.000295,3]
[328130305,1716913854132,-22292.055969,0.000295,2]
[328130306,1716913854141,-307.24,0.00029551,2]
[328130307,1716913854153,-150.0,0.00029577,2]
[328130308,1716913854163,-500.0,0.00029589,2]
[328130309,1716913854173,-1409.12,0.00029589,2]
[328130310,1716913854182,-2654.44,0.00029589,2]
[328130311,1716913854194,-500.0,0.00029589,2]
[328130312,1716913854205,-500.0,0.00029589,2]
[328130313,1716913854215,-198.42,0.00029589,2]
[328130314,1716913854225,-504.350954,0.00029589,2]
[328130315,1716913854235,-500.0,0.00029589,2]
[328130316,1716913854245,-500.0,0.00029589,2]
[328130317,1716913854255,-518.19,0.00029589,2]
[328130318,1716913854265,-500.0,0.00029589,2]
[328130319,1716913854275,-500.0,0.00029589,2]
[328130320,1716913854285,-682.59,0.00029589,2]
[328130321,1716913854295,-889.03,0.00029589,2]
[328130322,1716913854304,-500.0,0.00029589,2]
[328130323,1716913854314,-549.44,0.00029589,2]
[328130324,1716913854323,-500.0,0.00029589,2]
[328130325,1716913854333,-500.0,0.00029589,2]
[328130326,1716913854342,-991.41,0.00029589,2]
[328130327,1716913854352,-1270.58824831,0.00029773,2]
[328130328,1716913854361,-153.30098332,0.00029785,2]
[328130329,1716913854371,-158.99960963,0.00029795,2]
[328130330,1716913854380,-75280.5033114,0.00029799,11]
[328130331,1716913854390,-33438.083954,0.000298,2]
[328130332,1716913854399,-151.0,0.000298,7]
[328130333,1716913854408,-151.0,0.000298,7]
[328130334,1716913854418,-151.0,0.000298,7]
[328130335,1716913854428,-151.0,0.000298,7]
[328130336,1716913854437,-255.665661,0.000298,7]
[328130337,1716913854448,-255.665661,0.000298,7]
[328130338,1716913854457,-151.0,0.000298,7]
[328130339,1716913854466,-500.0,0.00029863,2]
[328130340,1716913854475,-1409.12,0.00029863,2]
[328130341,1716913854485,-2654.44,0.00029863,2]
[328130342,1716913854495,-500.0,0.00029863,2]
[328130343,1716913854504,-500.0,0.00029863,2]
[328130344,1716913854514,-500.0,0.00029863,2]
[328130345,1716913854524,-500.0,0.00029863,2]
[328130346,1716913854533,-518.19,0.00029863,2]
[328130347,1716913854543,-500.0,0.00029863,2]
[328130348,1716913854552,-500.0,0.00029863,2]
[328130349,1716913854563,-682.59,0.00029863,2]
[328130350,1716913854572,-889.03,0.00029863,2]
[328130351,1716913854582,-500.0,0.00029863,2]
[328130352,1716913854591,-549.44,0.00029863,2]
[328130353,1716913854601,-500.0,0.00029863,2]
[328130354,1716913854609,-500.0,0.00029863,2]
[328130355,1716913854619,-991.41,0.00029863,2]
[328130356,1716913854629,-150.55028266,0.0002987,2]
[328130357,1716913854638,-203.87406747,0.0002989,2]
[328130358,1716913854648,-153.0648168,0.00029891,2]
[328130359,1716913854658,-1300.0,0.00029916,2]
[328130360,1716913854667,-156.56459881,0.00029937,2]
[328130361,1716913854677,-2438.29698221,0.0003,2]
[328130362,1716913854687,-844.71246363,0.0003,10]
[328130363,1716913854698,-44584.111939,0.0003,2]
[328130364,1716913854708,-617.49831822,0.0003,2]
[328130365,1716913854719,-2343.63542169,0.0003,4]
[328130366,1716913854729,-23830.32925495,0.0003,4]
[328130367,1716913854739,-151.0,0.0003,7]
[328130368,1716913854750,-151.914147,0.0003,7]
[328130369,1716913854760,-500.0,0.0003,2]
[328130370,1716913854769,-151.0,0.0003,7]
[328130371,1716913854779,-155.0,0.0003,7]
[328130372,1716913854789,-151.0,0.0003,7]
[328130373,1716913854799,-151.0,0.0003,7]
[328130374,1716913854809,-151.0,0.0003,7]
[328130375,1716913854819,-151.0,0.0003,7]
[328130376,1716913854828,-151.0,0.0003,7]
[328130377,1716913854838,-151.0,0.0003,7]
[328130378,1716913854848,-151.0,0.0003,7]
[328130379,1716913854858,-151.0,0.0003,7]
[328130380,1716913854868,-151.0,0.0003,7]
[328130381,1716913854878,-151.0,0.0003,7]
[328130382,1716913854887,-151.0,0.0003,7]
[328130383,1716913854896,-151.0,0.0003,7]
[328130384,1716913854906,-151.0,0.0003,7]
[328130385,1716913854916,-151.0,0.0003,7]
[328130386,1716913854926,-151.0,0.0003,7]
[328130387,1716913854937,-151.0,0.0003,7]
[328130388,1716913854947,-305.660616,0.0003,7]
[328130389,1716913854957,-305.660616,0.0003,7]
[328130390,1716913854967,-151.0,0.0003,7]
[328130391,1716913854976,-151.0,0.0003,7]
[328130392,1716913854986,-151.0,0.0003,7]
[328130393,1716913854995,-151.0,0.0003,7]
[328130394,1716913855005,-151.0,0.0003,7]